{"text_format":"1","workbook":"xlsx","n_sheets":2,"sheets":["Entries","Athletes"],"not_rendered":{"charts":0,"images":0,"macros":1,"external_links":0,"defined_names":0,"comments":0,"pivot_tables":0},"unopened":[],"bounds":{"document_bytes":16777216,"sheet_cells":100000,"rows_first":2000,"rows_last":500,"rows_between":2000,"halvings":0,"cell_chars":16384,"cell_head_chars":4096},"cells_cut":0,"cells_raw":0,"read":"whole","date_system":"1900"}

{"sheet":"Entries","index":0,"n_rows":288,"n_cols":21,"rows_kept":288,"cut":false,"hidden":false,"merged":[[23,10,24,13]]}
[]
[null,"Number","Uni","Full Name","Event","Personal Best","Gender",null,"Notes",null,"Event","M","F","Total",null,"Uni","Team","Time","Gender","4x4 F","Team Name"]
[null,1,"Bedfordshire ","Scott Stoll ",400,null,null,null,null,null,100,{"$f":"COUNTIFS($E:$E,$K3,$G:$G,L$2)","v":21},{"$f":"COUNTIFS($E:$E,$K3,$G:$G,M$2)","v":13},{"$f":"COUNTIF($H:$H,$K3)","v":0},null,"Essex","4X100",42.29,"M",null,"Essex"]
[null,{"$f":"IF(D4=D3,B3,B3+1)","v":2},"Essex","Andrea Sanderson",800,2.445601851851852E-3,"F",null,null,null,200,{"$f":"COUNTIFS($E:$E,$K4,$G:$G,L$2)","v":18},12,{"$f":"COUNTIF($H:$H,$K4)","v":0},null,"Essex","4X100",49.52,"M",null,"Essex 2"]
[null,{"$f":"IF(D5=D4,B4,B4+1)","v":3},"Essex","Christina Pacht",1500,null,"F",null,null,null,400,13,7,{"$f":"COUNTIF($H:$H,$K5)","v":0},null,"Essex","4X100",49.52,"M",null,"Essex 3"]
[null,4,"Essex","Filipa McQueen",100,13.6,"F",null,null,null,800,11,11,{"$f":"COUNTIF($H:$H,$K6)","v":0},null,"Essex","4X100",52.29,"M",null,"Essex 4"]
[null,4,"Essex","Filipa McQueen",200,28.62,"F",null,null,null,1500,12,11,{"$f":"COUNTIF($H:$H,$K7)","v":0},null,"Essex","4X100",54.82,"F",null,"Essex"]
[null,4,"Essex","Filipa McQueen","100h",16.95,"F",null,null,null,null,null,null,null,null,"Essex","4X100",60.13,"F",null,"Essex 2"]
[null,4,"Essex","Filipa McQueen","Discus",23.44,"F",null,null,null,"100H",null,{"$f":"COUNTIFS($H:$H,$K9,$G:$G,M$2)","v":0},{"$f":"COUNTIF($H:$H,$K9)","v":0},null,"Essex","4X400","00:04:02.890","M",null,"Essex"]
[null,5,"Essex","Gabrielė Matulevičiūtė","Shot","8.11m","F",null,null,null,"110H",{"$f":"COUNTIFS($H:$H,$K10,$G:$G,L$2)","v":0},null,0,null,"Essex","4X400","00:05:32.040","F",null,"Essex"]
[null,6,"Essex","Hannah Wiltshire","100h",19.059999999999999,"F",null,null,null,"2KSC",null,{"$f":"COUNTIFS($H:$H,$K11,$G:$G,M$2)","v":0},0,null,"Imperial ","4X100",null,"M",null,"Imperial "]
[null,6,"Essex","Hannah Wiltshire","LJ",null,"F",null,null,null,"3KSC",{"$f":"COUNTIFS($H:$H,$K12,$G:$G,L$2)","v":0},null,0,null,"Imperial ","4X400",null,"M",null,"Imperial "]
[null,7,"Essex","Jamais Webb-Small",100,null,"F",null,null,null,"5K",{"$f":"COUNTIFS($H:$H,$K13,$G:$G,L$2)","v":0},{"$f":"COUNTIFS($H:$H,$K13,$G:$G,M$2)","v":0},0,null,"Reading","4x100",49,"M",null,"Reading"]
[null,8,"Essex","Jessica Bruton","Discus",30.13,"F",null,"Alumni",null,"10K",{"$f":"COUNTIFS($H:$H,$K14,$G:$G,L$2)","v":0},{"$f":"COUNTIFS($H:$H,$K14,$G:$G,M$2)","v":0},0,null,"Reading","4x400",3.45,"M",null,"Reading"]
[null,8,"Essex","Jessica Bruton","Shot",7.87,"F",null,"Alumni",null,null,null,null,null,null,"Reading","4x100",58,"F",null,"Reading"]
[null,9,"Essex","Marina Milagre",1500,null,"F",null,null,null,"LJ",{"$f":"COUNTIFS($H:$H,$K16,$G:$G,L$2)","v":0},0,{"$f":"COUNTIF($H:$H,$K16)","v":0},null,"Reading","4x400",4.45,"F",null,"Reading"]
[null,10,"Essex","Melisha Brown",200,30.93,"F",null,null,null,"HJ",0,0,0,null,"UCL","4X100",48,"M",null,"UCL"]
[null,11,"Essex","Natasha Brooks",400,74.63,"F",null,null,null,"TJ",0,0,0,null,"UCL","4X400",3.48,"M",null,"UCL"]
[null,12,"Essex","Rachel Bovington",800,0.13194444444444445,"F",null,null,null,"SP",0,0,0,null,"UCL","4X100",59,"F",null,"UCL"]
[null,13,"Essex","Sally-Anne Adams","2000 S.C",7.1130787037037039E-3,"F",null,null,null,"Javelin",0,0,0,null,"UCL","4X400",5.19,"F",null,"UCL"]
[null,14,"Essex","Sarah Arthur",1500,4.0962962962962967E-3,"F",null,null,null,"Discus",0,0,0,null,"UEL","4X400","03:20:00","M",null,"UEL"]
[null,15,"Essex","Sarah Kelley","100h",null,"F",null,null,null,"Total",{"$f":"SUM(L3:L21)","v":75},54,{"$f":"SUM(N3:N21)","v":0},null,"King's","4X100",null,"M",null,"Kings"]
[null,15,"Essex","Sarah Kelley","HJ",1.4,"F",null,null,null,null,null,null,null,null,"King's","4X400",null,"M",null,"Kings"]
[null,16,"Essex","Tolani George","Discus","15.84m","F",null,null,null,"The graph above is compiled from the list of athletes on the left",null,null,null,null,"King's","4X100",null,"F",null,"Kings"]
[null,16,"Essex","Tolani George","Javelin","16.74m","F",null,null,null,null,null,null,null,null,"King's","4X100",null,"F",null,"Kings 2"]
[null,16,"Essex","Tolani George","Shot","  9.33m","F",null,null,null,null,null,null,null,null,"King's","4X400",null,"F",null,"Kings"]
[null,17,"Essex","Toyin Olufemi",100,13.75,"F",null,null,null,null,null,null,null,null,"King's","4X400",null,"F",null,"Kings 2"]
[null,17,"Essex","Toyin Olufemi","Discus",23.17,"F"]
[null,18,"Essex","Ali Awil",800,null,"M"]
[null,19,"Essex","Arron Bernard",100,13.03,"M"]
[null,20,"Essex","Balasz Hergert",800,1.614699074074074E-3,"M"]
[null,21,"Essex","Brandon Charles",200,null,"M"]
[null,22,"Essex","Caiden Beales",1500,null,"M"]
[null,23,"Essex","Dmitrii Solomonov","110h",18.2,"M"]
[null,23,"Essex","Dmitrii Solomonov","HJ",1.85,"M"]
[null,23,"Essex","Dmitrii Solomonov","Javelin",34.5,"M"]
[null,23,"Essex","Dmitrii Solomonov","Shot",9.81,"M"]
[null,23,"Essex","Dmitrii Solomonov","Special Event ",null,"M"]
[null,24,"Essex","Emmanuel Ferreyra Olivares",100,null,"M"]
[null,24,"Essex","Emmanuel Ferreyra Olivares",400,null,"M"]
[null,24,"Essex","Emmanuel Ferreyra Olivares",1500,3.6672453703703706E-3,"M"]
[null,24,"Essex","Emmanuel Ferreyra Olivares","5K",1.4126504629629631E-2,"M"]
[null,25,"Essex","Eufrasio Anghileri","HJ",null,"M"]
[null,25,"Essex","Eufrasio Anghileri","Javelin",null,"M"]
[null,25,"Essex","Eufrasio Anghileri","LJ","5.86m","M"]
[null,25,"Essex","Eufrasio Anghileri","TJ",null,"M"]
[null,26,"Essex","Ibukun Oyesiku",100,11.89,"M"]
[null,26,"Essex","Ibukun Oyesiku",200,25.2,"M"]
[null,27,"Essex","James Knights","Discus",26.76,"M"]
[null,27,"Essex","James Knights","Javelin",50.8,"M"]
[null,27,"Essex","James Knights","Shot",8.4600000000000009,"M"]
[null,28,"Essex","Jason Eghan",100,13.4,"M"]
[null,28,"Essex","Jason Eghan","Shot",10.5,"M"]
[null,29,"Essex","Jason Wilson",200,null,"M"]
[null,29,"Essex","Jason Wilson",400,55.83,"M"]
[null,30,"Essex","Jefferson Ho",400,56.85,"M"]
[null,30,"Essex","Jefferson Ho",1500,3.7326388888888891E-3,"M"]
[null,31,"Essex","Jorge Garcia Diaz",100,12.25,"M"]
[null,31,"Essex","Jorge Garcia Diaz",200,25.33,"M"]
[null,32,"Essex","Josh Capon","Shot",7.83,"M"]
[null,33,"Essex","Kang Hong Yan","LJ","6.30m","M"]
[null,33,"Essex","Kang Hong Yan","TJ","11.40m","M"]
[null,34,"Essex","Karl Johnston",100,null,"M"]
[null,34,"Essex","Karl Johnston",200,25.2,"M"]
[null,34,"Essex","Karl Johnston","110h",20.7,"M"]
[null,35,"Essex","Lewis Haughton",400,null,"M"]
[null,35,"Essex","Lewis Haughton","5K",1.1805555555555555E-2,"M"]
[null,36,"Essex","Miraal Azhar","110h",21.6,"M"]
[null,{"$f":"IF(D69=D68,B68,B68+1)","v":36},"Essex","Miraal Azhar","Discus",null,"M"]
[null,36,"Essex","Miraal Azhar","Javelin",null,"M"]
[null,37,"Essex","Oghenetejiri Okagbare",400,null,"M"]
[null,38,"Essex","Patrick Chimhini",100,11.9,"M"]
[null,38,"Essex","Patrick Chimhini",200,24.1,"M"]
[null,39,"Essex","Rahmiah Ellington",100,11.99,"M"]
[null,39,"Essex","Rahmiah Ellington",200,24.53,"M"]
[null,40,"Essex","Robert Barwick",100,12.36,"M"]
[null,40,"Essex","Robert Barwick",200,26.02,"M"]
[null,40,"Essex","Robert Barwick","Discus",15.4,"M"]
[null,40,"Essex","Robert Barwick","Javelin",19.04,"M"]
[null,41,"Essex","Roch Sherriff",100,12.12,"M"]
[null,42,"Essex","Romain Harvey",100,12.67,"M"]
[null,43,"Essex","Stefan Lee Luen Mang",100,null,"M"]
[null,43,"Essex","Stefan Lee Luen Mang",200,26.21,"M"]
[null,44,"Essex","Sze Chun (Eric) Liu","3K S.C",null,"M"]
[null,45,"Essex","Toheeb Tijani","LJ","6.23m","M"]
[null,45,"Essex","Toheeb Tijani","TJ","13.75m","M"]
[null,46,"Guest"," Jimmy Thoronka",400]
[null,47,"Imperial","Leanne Lyons",1500,null,"F"]
[null,47,"Imperial","Leanne Lyons","5K",null,"F"]
[null,47,"Imperial","Leanne Lyons","Discus",null,"F"]
[null,48,"Imperial","Charles Houston","5K",null,"M"]
[null,49,"Imperial","Christopher Allison",1500,null,"M"]
[null,49,"Imperial","Christopher Allison",800,null,"M"]
[null,49,"Imperial","Christopher Allison","High Jump",null,"M"]
[null,49,"Imperial","Christopher Allison","Javelin",null,"M"]
[null,50,"Imperial","Craig Wheadon",200,null,"M"]
[null,51,"Imperial","Erik Tropp","Discus",null,"M"]
[null,51,"Imperial","Erik Tropp","Javelin",null,"M"]
[null,51,"Imperial","Erik Tropp","Triple Jump",null,"M"]
[null,52,"Imperial","Lewis Jackson",1500,null,"M"]
[null,53,"Imperial","Liam Smith","5K",null,"M"]
[null,53,"Imperial","Liam Smith",800,null,"M"]
[null,54,"Imperial","Max Thorp",800,null,"M"]
[null,55,"Imperial","Shivam Patel","Javelin",null,"M"]
[null,55,"Imperial","Shivam Patel","Shot Put",null,"M"]
[null,56,"Imperial","Gareth Holden",400,null,null,null,"Alumni"]
[null,57,"King's","Amy Bond",800,null,"F"]
[null,57,"King's","Amy Bond",1500,null,"F"]
[null,58,"King's","Armelle Folkes","Long Jump",null,"F"]
[null,59,"King's","Berenice van Moere",100,null,"F"]
[null,59,"King's","Berenice van Moere",200,null,"F"]
[null,60,"King's","Calvi Thompson",1500,null,"F"]
[null,60,"King's","Calvi Thompson","5K",null,"F"]
[null,61,"King's","Carey Hollick","Shot Put",null,"F"]
[null,61,"King's","Carey Hollick","Javelin",null,"F"]
[null,61,"King's","Carey Hollick","Disc.",null,"F"]
[null,62,"King's","Chloe Hocking",100,null,"F"]
[null,62,"King's","Chloe Hocking",200,null,"F"]
[null,63,"King's","Clare Dyer",100,null,"F"]
[null,63,"King's","Clare Dyer",200,null,"F"]
[null,63,"King's","Clare Dyer","LJ",null,"F"]
[null,64,"King's","Danetta Lee",100,null,"F"]
[null,64,"King's","Danetta Lee",200,null,"F"]
[null,64,"King's","Danetta Lee",400,null,"F"]
[null,64,"King's","Danetta Lee","100 H",null,"F"]
[null,64,"King's","Danetta Lee","Triple Jump",null,"F"]
[null,65,"King's","Emma Passey","Shot Put",null,"F"]
[null,65,"King's","Emma Passey","Javelin",null,"F"]
[null,65,"King's","Emma Passey","Disc",null,"F"]
[null,66,"King's","Fran Ashworth",800,null,"F"]
[null,66,"King's","Fran Ashworth",400,null,"F"]
[null,67,"King's","Hannah Baynham","5K",null,"F"]
[null,{"$f":"IF(D133=D132,B132,B132+1)","v":68},"King's","Hui Lynn Ooi","Long Jump",null,"F"]
[null,69,"King's","Jessica Sze",100,null,"F"]
[null,70,"King's","Laviai Nielsen",100,null,"F"]
[null,71,"King's","Victoria Addison","Multi-event",null,"F"]
[null,72,"King's","Alex Russo",400,null,"M"]
[null,73,"King's","Andrew Seow","Javelin",45,"M"]
[null,74,"King's","Arturo Martinez de Murguia",1500,4.46,"M"]
[null,75,"King's","Colin Phillips",1500,0.22500000000000001,"M"]
[null,75,"King's","Colin Phillips","5K",0.90902777777777777,"M"]
[null,75,"King's","Colin Phillips","3KSC",0.62569444444444444,"M"]
[null,75,"King's","Colin Phillips","Javelin",20.25,"M"]
[null,76,"King's","Dan Allen","LJ",null,"M"]
[null,77,"King's","Daniel Tang","SP",5.9,"M"]
[null,77,"King's","Daniel Tang","Javelin",null,"M"]
[null,77,"King's","Daniel Tang","Multi Event",null,"M"]
[null,78,"King's","FeyZi Nazim","SP",null,"M"]
[null,78,"King's","Feyzi Nazim","Javelin",null,"M"]
[null,79,"King's","Gernot Steiner ",100,12,"M"]
[null,80,"King's","Harry Browning",100,11.69,"M"]
[null,80,"King's","Harry Browning",200,23.78,"M"]
[null,81,"King's","Jack Hood",800,null,"M"]
[null,82,"King's","James Findon","Multi Event",null,"M"]
[null,83,"King's","Joey Shaw","3KSC",11.13,"M"]
[null,84,"King's","Kartik Bhasin","Multi Event",null,"M",null,"Alumni"]
[null,85,"King's","Kishore Kanna Ravi",100,null,"M"]
[null,86,"King's","Neal Trotter","5K",19.36,"M"]
[null,87,"King's","Sam Vennin","Multi Event",null,"M"]
[null,88,"Loughborough","Jonathon Bailey","High Jump"]
[null,89,"LSE","Yasmin Lakin","LJ",5.28,"F"]
[null,89,"LSE","Yasmin Lakin","TJ","11.73i","F"]
[null,90,"LSE","George Bettsworth",400,59.52,"M"]
[null,90,"LSE","George Bettsworth",1500,"4.31.26i","M"]
[null,91,"Middlesex","John Johnson",100,11.33,"M"]
[null,91,"Middlesex","John Johnson",200,22.76,"M"]
[null,92,"Queen Mary","Toluwani Ojora",100]
[null,92,"Queen Mary","Toluwani Ojora",200,null,null,null,"May Remove"]
[null,93,"Reading","Chloe Dearman",800,2.29,"F"]
[null,93,"Reading","Chloe Dearman",1500,5.0599999999999996,"F"]
[null,93,"Reading","Chloe Dearman","Discus",17.21,"F"]
[null,94,"Reading","Kerry Mccrory","LJ",4.8099999999999996,"F"]
[null,95,"Reading","Rosanna Jacobs",400,61.7,"F"]
[null,95,"Reading","Rosanna Jacobs","100h",16,"F"]
[null,95,"Reading","Rosanna Jacobs","HJ",1.5,"F"]
[null,95,"Reading","Rosanna Jacobs",200,28.4,"F"]
[null,96,"Reading","Winnie Swann",800,2.37,"F"]
[null,96,"Reading","Winnie Swann",1500,5.19,"F"]
[null,96,"Reading","Winnie Swann","Shot","N/A","F"]
[null,97,"Reading","Ziana Azariah","Shot",9.26,"F"]
[null,97,"Reading","Ziana Azariah","Discus",21.95,"F"]
[null,98,"Reading","Zoe Styles",200,25.2,"F"]
[null,98,"Reading","Zoe Styles","LJ","5.17m","F"]
[null,99,"Reading","Alexander Stephens","5K",18.46,"M"]
[null,100,"Reading","Jack Leafe",800,"n/a","M"]
[null,100,"Reading","Jack Leafe",1500,"n/a","M"]
[null,101,"Reading","Joshua Watson","HJ","2m","M"]
[null,101,"Reading","Joshua Watson","Discus","29.11m","M"]
[null,101,"Reading","Joshua Watson","TJ","12.11m","M"]
[null,101,"Reading","Joshua Watson",400,55.6,"M"]
[null,101,"Reading","Joshua Watson","110h",18.5,"M"]
[null,102,"Reading","Karl Tucker",100,11.3,"M"]
[null,102,"Reading","Karl Tucker",200,23.5,"M"]
[null,103,"Reading","Michael Dzandu","Javelin","37.01m","M"]
[null,103,"Reading","Michael Dzandu",100,"N/a","M"]
[null,103,"Reading","Michael Dzandu",200,"n/a","M"]
[null,{"$f":"IF(D197=D196,B196,B196+1)","v":103},"Reading","Michael Dzandu","TJ","5.42m","M"]
[null,103,"Reading","Michael Dzandu","LJ","n/a","M"]
[null,104,"Reading","Rhys Robson-Edmunds","3K S.C","N/A","M"]
[null,104,"Reading","Rhys Robson-Edmunds","5K","N/A","M"]
[null,105,"Reading","Ryan Faulkner",1500,"4.25.2","M"]
[null,105,"Reading","Ryan Faulkner","5K","16.44.6","M"]
[null,106,"Reading","Sam Cunningham",400,53.5,"M"]
[null,107,"Reading","Tom Ryan",400,54.4,"M"]
[null,107,"Reading","Tom Ryan",800,2.04,"M"]
[null,108,"Reading","Yau-Hei Chai","5K",22.3,"M"]
[null,108,"Reading","Yau-Hei Chai",1500,"n/a","M"]
[null,109,"Roe","Alex Dunne-Gundry","5K",null,"F"]
[null,110,"Roe","Kirsty Wheeler",800,null,"F"]
[null,110,"Roe","Kirsty Wheeler",1500,null,"F"]
[null,110,"Roe","Kirsty Wheeler","Shot",null,"F"]
[null,110,"Roe","Kirsty Wheeler","Discuss",null,"F"]
[null,111,"Royal H","Jade Anderson-Busby",1500,"05.40.30","F"]
[null,111,"Royal H","Jade Anderson-Busby",800,"02.50.13","F"]
[null,112,"Royal H","Tim Walpot",800,2.13,"M"]
[null,112,"Royal H","Tim Walpot",200,0.26,"M"]
[null,113,"UCL","Annabelle Burns","5K",null,"F"]
[null,114,"UCL","Becki Clarke ","5K",null,"F"]
[null,115,"UCL","Emma Butcher","Multi event",null,"F"]
[null,115,"UCL","Emma Butcher",400,64.5,"F"]
[null,115,"UCL","Emma Butcher","HJ",1.3,"F"]
[null,116,"UCL","Emma Simpson-Dore","Multi event",null,"F"]
[null,116,"UCL","Emma Simpson-Dore",800,2.2799999999999998,"F"]
[null,116,"UCL","Emma Simpson-Dore","100 Hu",20.05,"F"]
[null,116,"UCL","Emma Simpson-Dore","HJ",1.25,"F"]
[null,116,"UCL","Emma Simpson-Dore","SP",6.8,"F"]
[null,117,"UCL","Leah Kenny","5K",19.27,"F"]
[null,118,"UCL","Lucy Wright",1500,null,"F"]
[null,119,"UCL","Mariana Cabral",100,null,"F"]
[null,119,"UCL","Mariana Cabral",200,null,"F"]
[null,119,"UCL","Mariana Cabral","LJ",null,"F"]
[null,120,"UCL","Rhianna Madden_Hansle","LJ",4.5199999999999996,"F"]
[null,120,"UCL","Rhianna Madden_Hansle","TJ",10.24,"F"]
[null,120,"UCL","Rhianna Madden_Hansle",100,13.7,"F"]
[null,120,"UCL","Rhianna Madden_Hansle","SP",6.58,"F"]
[null,121,"UCL","Sarah Murphy","Multi event",null,"F"]
[null,121,"UCL","Sarah Murphy","Shot",7.02,"F"]
[null,121,"UCL","Sarah Murphy","Javelin",12.87,"F"]
[null,121,"UCL","Sarah Murphy","High Jump",null,"F"]
[null,121,"UCL","Sarah Murphy","Long Jump",null,"F"]
[null,121,"UCL","Sarah Murphy",200,28.87,"F"]
[null,121,"UCL","Sarah Murphy",800,null,"F"]
[null,122,"UCL","Shala Nourmamode",200,null,"F"]
[null,122,"UCL","Shala Nourmamode",800,null,"F"]
[null,122,"UCL","Shala Nourmamode","LJ",null,"F"]
[null,123,"UCL","Alex Dudney","Javelin",34.590000000000003,"M"]
[null,123,"UCL","Alex Dudney",400,null,"M"]
[null,123,"UCL","Alex Dudney","SP",7.59,"M"]
[null,123,"UCL","Alex Dudney","110m hu",null,"M"]
[null,123,"UCL","Alex Dudney","Discuss",null,"M"]
[null,124,"UCL","Alfie Duffen","3K SC",null,"M"]
[null,124,"UCL","Alfie Duffen","SP",null,"M"]
[null,125,"UCL","Emmett Thomson",200,24,"M"]
[null,125,"UCL","Emmett Thomson",400,53,"M"]
[null,126,"UCL","Fernando Tagle Valle","5K",18.04,"M"]
[null,126,"UCL","Fernando Tagle Valle","3K SC",null,"M"]
[null,126,"UCL","Fernando Tagle Valle","110m hu",null,"M"]
[null,126,"UCL","Fernando Tagle Valle","SP",null,"M"]
[null,127,"UCL","George Withers",800,2.0099999999999998,"M"]
[null,127,"UCL","George Withers",1500,4.17,"M"]
[null,{"$f":"IF(D261=D260,B260,B260+1)","v":127},"UCL","George Withers","TJ",10.87,"M"]
[null,128,"UCL","Henry Murdoch","5K",18.32,"M"]
[null,128,"UCL","Henry Murdoch","HJ",null,"M"]
[null,128,"UCL","Henry Murdoch","3K SC",11.54,"M"]
[null,129,"UCL","Mark Dyble",100,10.83,"M"]
[null,129,"UCL","Mark Dyble",200,21.8,"M"]
[null,130,"UCL","Rahil Sachak-Patwa","5K",16.329999999999998,"M"]
[null,130,"UCL","Rahil Sachak-Patwa","3K SC",12.12,"M"]
[null,130,"UCL","Rahil Sachak-Patwa","110m hu",null,"M"]
[null,131,"UCL","Robin Talbot",100,null,"M"]
[null,131,"UCL","Robin Talbot","Long Jump",null,"M"]
[null,131,"UCL","Robin Talbot","TJ",null,"M"]
[null,132,"UCL","Teddy Truneh",400,53.2,"M"]
[null,132,"UCL","Teddy Truneh",800,2.02,"M"]
[null,132,"UCL","Teddy Truneh","Javelin",39.549999999999997,"M"]
[null,133,"UCL","Victor Mound","5K",14.55,"M"]
[null,133,"UCL","Victor Mound","3K SC",10.45,"M"]
[null,134,"UCL","Will De Doncker","5K",17,"M"]
[null,134,"UCL","Will De Doncker","3K SC",null,"M"]
[null,135,"UEL","Antonia Evans",100,12.21,"F"]
[null,135,"UEL","Antonia Evans",200,25.44,"F"]
[null,136,"UEL","Kehinde Ademola",100,12.68,"F"]
[null,137,"UEL","Majidah Harb",400,64.63,"F"]
[null,138,"UEL","Michelle Mullen ",400,62.01,"F"]
[null,139,"UEL","Gavin Colley ",100,10.61,"M"]
[null,140,"UEL","Keith Turner",200,21.7,"M"]
[null,141,"UEL","Marius Razanauskas","Shot",0.4548611111111111,"M"]
[null,142,"UEL","Shad Aaron",100,11]

{"sheet":"Athletes","index":1,"n_rows":144,"n_cols":7,"rows_kept":144,"cut":false,"hidden":false,"merged":[]}
[]
[null,"Number","Uni","Full Name","Gender",null,"Notes"]
[null,1,"Bedfordshire ","Scott Stoll "]
[null,{"$f":"IF(D4=D3,B3,B3+1)","v":2},"Essex","Andrea Sanderson","F"]
[null,3,"Essex","Christina Pacht","F"]
[null,4,"Essex","Filipa McQueen","F"]
[null,5,"Essex","Gabrielė Matulevičiūtė","F"]
[null,6,"Essex","Hannah Wiltshire","F"]
[null,7,"Essex","Jamais Webb-Small","F"]
[null,8,"Essex","Jessica Bruton","F",null,"Alumni"]
[null,9,"Essex","Marina Milagre","F"]
[null,10,"Essex","Melisha Brown","F"]
[null,11,"Essex","Natasha Brooks","F"]
[null,12,"Essex","Rachel Bovington","F"]
[null,13,"Essex","Sally-Anne Adams","F"]
[null,14,"Essex","Sarah Arthur","F"]
[null,15,"Essex","Sarah Kelley","F"]
[null,16,"Essex","Tolani George","F"]
[null,17,"Essex","Toyin Olufemi","F"]
[null,18,"Essex","Ali Awil","M"]
[null,19,"Essex","Arron Bernard","M"]
[null,20,"Essex","Balasz Hergert","M"]
[null,21,"Essex","Brandon Charles","M"]
[null,22,"Essex","Caiden Beales","M"]
[null,23,"Essex","Dmitrii Solomonov","M"]
[null,24,"Essex","Emmanuel Ferreyra Olivares","M"]
[null,25,"Essex","Eufrasio Anghileri","M"]
[null,26,"Essex","Ibukun Oyesiku","M"]
[null,27,"Essex","James Knights","M"]
[null,28,"Essex","Jason Eghan","M"]
[null,29,"Essex","Jason Wilson","M"]
[null,30,"Essex","Jefferson Ho","M"]
[null,31,"Essex","Jorge Garcia Diaz","M"]
[null,32,"Essex","Josh Capon","M"]
[null,33,"Essex","Kang Hong Yan","M"]
[null,{"$f":"IF(D36=D35,B35,B35+1)","v":34},"Essex","Karl Johnston","M"]
[null,35,"Essex","Lewis Haughton","M"]
[null,36,"Essex","Miraal Azhar","M"]
[null,37,"Essex","Oghenetejiri Okagbare","M"]
[null,38,"Essex","Patrick Chimhini","M"]
[null,39,"Essex","Rahmiah Ellington","M"]
[null,40,"Essex","Robert Barwick","M"]
[null,41,"Essex","Roch Sherriff","M"]
[null,42,"Essex","Romain Harvey","M"]
[null,43,"Essex","Stefan Lee Luen Mang","M"]
[null,44,"Essex","Sze Chun (Eric) Liu","M"]
[null,45,"Essex","Toheeb Tijani","M"]
[null,46,"Guest"," Jimmy Thoronka"]
[null,47,"Imperial","Leanne Lyons","F"]
[null,48,"Imperial","Charles Houston","M"]
[null,49,"Imperial","Christopher Allison","M"]
[null,50,"Imperial","Craig Wheadon","M"]
[null,51,"Imperial","Erik Tropp","M"]
[null,52,"Imperial","Lewis Jackson","M"]
[null,53,"Imperial","Liam Smith","M"]
[null,54,"Imperial","Max Thorp","M"]
[null,55,"Imperial","Shivam Patel","M"]
[null,56,"Imperial","Gareth Holden",null,null,"Alumni"]
[null,57,"King's","Amy Bond","F"]
[null,58,"King's","Armelle Folkes","F"]
[null,59,"King's","Berenice van Moere","F"]
[null,60,"King's","Calvi Thompson","F"]
[null,61,"King's","Carey Hollick","F"]
[null,62,"King's","Chloe Hocking","F"]
[null,63,"King's","Clare Dyer","F"]
[null,64,"King's","Danetta Lee","F"]
[null,65,"King's","Emma Passey","F"]
[null,{"$f":"IF(D68=D67,B67,B67+1)","v":66},"King's","Fran Ashworth","F"]
[null,67,"King's","Hannah Baynham","F"]
[null,68,"King's","Hui Lynn Ooi","F"]
[null,69,"King's","Jessica Sze","F"]
[null,70,"King's","Laviai Nielsen","F"]
[null,71,"King's","Victoria Addison","F"]
[null,72,"King's","Alex Russo","M"]
[null,73,"King's","Andrew Seow","M"]
[null,74,"King's","Arturo Martinez de Murguia","M"]
[null,75,"King's","Colin Phillips","M"]
[null,76,"King's","Dan Allen","M"]
[null,77,"King's","Daniel Tang","M"]
[null,78,"King's","FeyZi Nazim","M"]
[null,79,"King's","Gernot Steiner ","M"]
[null,80,"King's","Harry Browning","M"]
[null,81,"King's","Jack Hood","M"]
[null,82,"King's","James Findon","M"]
[null,83,"King's","Joey Shaw","M"]
[null,84,"King's","Kartik Bhasin","M",null,"Alumni"]
[null,85,"King's","Kishore Kanna Ravi","M"]
[null,86,"King's","Neal Trotter","M"]
[null,87,"King's","Sam Vennin","M"]
[null,88,"Loughborough","Jonathon Bailey"]
[null,89,"LSE","Yasmin Lakin","F"]
[null,90,"LSE","George Bettsworth","M"]
[null,91,"Middlesex","John Johnson","M"]
[null,92,"Queen Mary","Toluwani Ojora"]
[null,93,"Reading","Chloe Dearman","F"]
[null,94,"Reading","Kerry Mccrory","F"]
[null,95,"Reading","Rosanna Jacobs","F"]
[null,96,"Reading","Winnie Swann","F"]
[null,97,"Reading","Ziana Azariah","F"]
[null,{"$f":"IF(D100=D99,B99,B99+1)","v":98},"Reading","Zoe Styles","F"]
[null,99,"Reading","Alexander Stephens","M"]
[null,100,"Reading","Jack Leafe","M"]
[null,101,"Reading","Joshua Watson","M"]
[null,102,"Reading","Karl Tucker","M"]
[null,103,"Reading","Michael Dzandu","M"]
[null,104,"Reading","Rhys Robson-Edmunds","M"]
[null,105,"Reading","Ryan Faulkner","M"]
[null,106,"Reading","Sam Cunningham","M"]
[null,107,"Reading","Tom Ryan","M"]
[null,108,"Reading","Yau-Hei Chai","M"]
[null,109,"Roe","Alex Dunne-Gundry","F"]
[null,110,"Roe","Kirsty Wheeler","F"]
[null,111,"Royal H","Jade Anderson-Busby","F"]
[null,112,"Royal H","Tim Walpot","M"]
[null,113,"UCL","Annabelle Burns","F"]
[null,114,"UCL","Becki Clarke ","F"]
[null,115,"UCL","Emma Butcher","F"]
[null,116,"UCL","Emma Simpson-Dore","F"]
[null,117,"UCL","Leah Kenny","F"]
[null,118,"UCL","Lucy Wright","F"]
[null,119,"UCL","Mariana Cabral","F"]
[null,120,"UCL","Rhianna Madden_Hansle","F"]
[null,121,"UCL","Sarah Murphy","F"]
[null,122,"UCL","Shala Nourmamode","F"]
[null,123,"UCL","Alex Dudney","M"]
[null,124,"UCL","Alfie Duffen","M"]
[null,125,"UCL","Emmett Thomson","M"]
[null,126,"UCL","Fernando Tagle Valle","M"]
[null,127,"UCL","George Withers","M"]
[null,128,"UCL","Henry Murdoch","M"]
[null,129,"UCL","Mark Dyble","M"]
[null,{"$f":"IF(D132=D131,B131,B131+1)","v":130},"UCL","Rahil Sachak-Patwa","M"]
[null,131,"UCL","Robin Talbot","M"]
[null,132,"UCL","Teddy Truneh","M"]
[null,133,"UCL","Victor Mound","M"]
[null,134,"UCL","Will De Doncker","M"]
[null,135,"UEL","Antonia Evans","F"]
[null,136,"UEL","Kehinde Ademola","F"]
[null,137,"UEL","Majidah Harb","F"]
[null,138,"UEL","Michelle Mullen ","F"]
[null,139,"UEL","Gavin Colley ","M"]
[null,140,"UEL","Keith Turner","M"]
[null,141,"UEL","Marius Razanauskas","M"]
[null,142,"UEL","Shad Aaron"]